Workbook

Sheet PFP
A1: PROPOSTA FINANCEIRA DO PROJETO | O1: CODIGO:
O2: PFP
A3: NOME DA EMPRESA:
A5: PROJETO: | I5: CONTRATANTE: | M5: DATA-BASE | O5: Total
A6: SELEÇÃO DE ÁREAS PRIORITÁRIAS E ELABORAÇÃO DE DIAGNÓSTICO E PROJETO BÁSICO DE ENGENHARIA PARA RECUPERAÇÃO HIDROAMBIENTAL NA ÁREA DE ATUAÇÃO DA CODEVASF. | I6: CODEVASF (SEDE) | M6: 2024-10-01 | O6: SINAPI/DF: Junho/2024 Tabela Consultiva da Codevasf: Fevereiro/2019 atualizado para Setembro/2024 SICRO/NA: Julho/2024 EMBASA:Janeiro/2024 Tabela de Diárias da Codevasf: Maio/2024
A7: Base | B7: Cod2 | C7: Cod3 | D7: Código | E7: Categoria / Insumo | F7: Uni | G7: Qde | J7: CUD | K7: PU | L7: FatorK | M7: CT | P7: PT
G8: Item 1 | H8: Item 2 | I8: Total | M8: Item 1 | N8: Item 2 | O8: Total | P8: Item 1 | Q8: Item 2 | R8: Total
A9: SICRO | B9: MO2 | C9: P2 | D9: P8066 | E9: Engenheiro pleno (P8066) | F9: mês | G9: ='CRO-1'!H5 -> 3 | H9: ='CRO-1'!I5 -> 5 | I9: ='CRO-1'!D5 -> 8 | J9: 12629.6 | K9: =ROUND(L9*J9,2) -> 19289.19 | L9: ='PFP2.2_FatorKb'!E36 -> 1.5273 | M9: =G9*J9 -> 37888.8 | N9: =H9*J9 -> 63148 | O9: =ROUND(I9*J9,2) -> 101036.8 | P9: =G9*K9 -> 57867.57 | Q9: =H9*K9 -> 96445.95 | R9: =ROUND(I9*K9,2) -> 154313.52
A10: SICRO | B10: MO1 | C10: P3 | D10: P8065 | E10: Engenheiro júnior (P8065) | F10: mês | G10: ='CRO-1'!H6 -> 3 | H10: ='CRO-1'!I6 -> 5 | I10: ='CRO-1'!D6 -> 8 | J10: 12002 | K10: =ROUND(L10*J10,2) -> 25553.46 | L10: ='PFP2.1_FatorKa'!$E$36 -> 2.1291 | M10: =G10*J10 -> 36006 | N10: =H10*J10 -> 60010 | O10: =ROUND(I10*J10,2) -> 96016 | P10: =G10*K10 -> 76660.38 | Q10: =H10*K10 -> 127767.3 | R10: =ROUND(I10*K10,2) -> 204427.68
A11: SICRO | B11: MO1 | C11: S2 | D11: P8184 | E11: Analista pleno (P8184) | F11: mês | G11: ='CRO-1'!H7 -> 3 | H11: ='CRO-1'!I7 -> 5 | I11: ='CRO-1'!D7 -> 8 | J11: 5205.92 | K11: 11083.92 | L11: ='PFP2.1_FatorKa'!$E$36 -> 2.1291 | M11: 15617.76 | N11: 26029.6 | O11: =ROUND(I11*J11,2) -> 41647.36 | P11: 33251.76 | Q11: 55419.6 | R11: 88671.36
A12: SICRO | B12: MO1 | C12: T1 | D12: P8143 | E12: Técnico/Tecnologo pleno (P8143) | F12: mês | G12: ='CRO-1'!H8 -> 3 | H12: ='CRO-1'!I8 -> 5 | I12: ='CRO-1'!D8 -> 8 | J12: 2911.08 | K12: =ROUND(L12*J12,2) -> 6197.98 | L12: ='PFP2.1_FatorKa'!$E$36 -> 2.1291 | M12: 8733.24 | N12: 14555.4 | O12: =ROUND(I12*J12,2) -> 23288.64 | P12: 18593.94 | Q12: 30989.9 | R12: =ROUND(I12*K12,2) -> 49583.84
A13: SICRO | B13: MO1 | C13: A1 | D13: P8026 | E13: Auxiliar administrativo (P8026) | F13: mês | G13: ='CRO-1'!H9 -> 3 | H13: ='CRO-1'!I9 -> 5 | I13: ='CRO-1'!D9 -> 8 | J13: 1880.26 | K13: =ROUND(L13*J13,2) -> 4003.26 | L13: ='PFP2.1_FatorKa'!$E$36 -> 2.1291 | M13: 5640.78 | N13: 9401.3 | O13: =ROUND(I13*J13,2) -> 15042.08 | P13: 12009.78 | Q13: 20016.3 | R13: =ROUND(I13*K13,2) -> 32026.08
A14: SICRO | B14: EC | C14: ECA | E14: Encargos Compementares e Adicionais | F14: mês | G14: ='CRO-1'!H10 -> 15 | H14: ='CRO-1'!I10 -> 25 | I14: ='CRO-1'!D10 -> 40 | J14: ='PFP1.1_ECA'!E16 -> 1097.16 | K14: =ROUND(L14*J14,2) -> 1319.44 | L14: =PFP3_FatorKd!$E$17 -> 1.2026 | M14: 16457.4 | N14: 27429 | O14: =ROUND(I14*J14,2) -> 43886.4 | P14: 19791.6 | Q14: 32986 | R14: =ROUND(I14*K14,2) -> 52777.6
A15: PROP | B15: EC | C15: AT1 | E15: Auxílio Transporte Técnicos | F15: mês | G15: ='CRO-1'!H11 -> 0 | H15: ='CRO-1'!I11 -> 0 | I15: 0 | J15: Já incluso* | K15: 0 | L15: =PFP3_FatorKd!$E$17 -> 1.2026 | M15: 0 | N15: 0 | O15: 0 | P15: 0 | Q15: 0 | R15: =ROUND(I15*K15,2) -> 0
A16: PROP | B16: EC | C16: AT2 | E16: Auxílio Transporte Auxiliar Administrativo | F16: mês | G16: ='CRO-1'!H12 -> 0 | H16: ='CRO-1'!I12 -> 0 | I16: 0 | J16: Já incluso* | K16: 0 | L16: =PFP3_FatorKd!$E$17 -> 1.2026 | M16: 0 | N16: 0 | O16: 0 | P16: 0 | Q16: 0 | R16: 0
A17: SICRO | B17: LO | C17: E8891 | E17: Veículo leve picape 4x4 147 kW (produtivo) | F17: h | G17: ='CRO-1'!H13 -> 45 | H17: ='CRO-1'!I13 -> 162 | I17: ='CRO-1'!D13 -> 207 | J17: 80.68 | K17: =ROUND(L17*J17,2) -> 97.03 | L17: =PFP3_FatorKd!$E$17 -> 1.2026 | M17: 3630.6 | N17: 13070.16 | O17: =ROUND(I17*J17,2) -> 16700.76 | P17: 4366.35 | Q17: 15718.86 | R17: 20085.21
A18: SICRO | B18: LO | C18: E8892 | E18: Veículo leve picape 4x4 147 kW (improdutivo) | F18: h | G18: ='CRO-1'!H14 -> 75 | H18: ='CRO-1'!I14 -> 270 | I18: ='CRO-1'!D14 -> 345 | J18: 24.66 | K18: =ROUND(L18*J18,2) -> 29.66 | L18: =PFP3_FatorKd!$E$17 -> 1.2026 | M18: 1849.5 | N18: 6658.2 | O18: =ROUND(I18*J18,2) -> 8507.7 | P18: 2224.5 | Q18: 8008.2 | R18: 10232.7
A19: COTAÇÃO | B19: OU1 | E19: Notebook | F19: mês | G19: ='CRO-1'!H15 -> 15 | H19: ='CRO-1'!I15 -> 25 | I19: ='CRO-1'!D15 -> 40 | J19: ='Cotacoes-Equip'!B41 -> 56.42357639 | K19: =ROUND(L19*J19,2) -> 67.85 | L19: =PFP3_FatorKd!$E$17 -> 1.2026 | M19: 846.3536458 | N19: 1410.58941 | O19: =ROUND(I19*J19,2) -> 2256.94 | P19: 1017.75 | Q19: 1696.25 | R19: 2714
A20: COTAÇÃO | B20: OU2 | E20: Receptor GPS de navegação | F20: mês | G20: ='CRO-1'!H16 -> 1 | H20: ='CRO-1'!I16 -> 3 | I20: ='CRO-1'!D16 -> 4 | J20: ='Cotacoes-Equip'!B31 -> 38.32291667 | K20: =ROUND(L20*J20,2) -> 46.09 | L20: =PFP3_FatorKd!$E$17 -> 1.2026 | M20: 38.32291667 | N20: 114.96875 | O20: =ROUND(I20*J20,2) -> 153.29 | P20: 46.09 | Q20: 138.27 | R20: 184.36
A21: COTAÇÃO | B21: OU3 | E21: Receptor GNSS/RTK | F21: mês | G21: ='CRO-1'!H17 -> 0 | H21: ='CRO-1'!I17 -> 2 | I21: ='CRO-1'!D17 -> 2 | J21: ='Cotacoes-Equip'!B36 -> 445.7951389 | K21: =ROUND(L21*J21,2) -> 536.11 | L21: =PFP3_FatorKd!$E$17 -> 1.2026 | M21: 0 | N21: 891.5902778 | O21: =ROUND(I21*J21,2) -> 891.59 | P21: 0 | Q21: 1072.22 | R21: 1072.22
A22: CODEVASF | B22: LO | C22: V1 | E22: Diárias | F22: dia | G22: ='CRO-1'!H18 -> 30 | H22: ='CRO-1'!I18 -> 108 | I22: ='CRO-1'!D18 -> 138 | J22: =Diárias!B21 -> 166.87 | K22: =ROUND(L22*J22,2) -> 200.68 | L22: =PFP3_FatorKd!$E$17 -> 1.2026 | M22: 5006.1 | N22: 18021.96 | O22: =ROUND(I22*J22,2) -> 23028.06 | P22: 6020.4 | Q22: 21673.44 | R22: 27693.84
A23: COTAÇÃO | B23: OU4 | E23: Passagens Aéreas (ida e volta) | F23: uni | G23: ='CRO-1'!H19 -> 1 | H23: ='CRO-1'!I19 -> 1 | I23: ='CRO-1'!D19 -> 2 | J23: ='Cotacoes-PassagensAereas'!E17 -> 1277.42 | K23: =ROUND(L23*J23,2) -> 1536.23 | L23: =PFP3_FatorKd!$E$17 -> 1.2026 | M23: 1277.42 | N23: =H23*J23 -> 1277.42 | O23: =ROUND(I23*J23,2) -> 2554.84 | P23: 1536.23 | Q23: 1536.23 | R23: 3072.46
A24: EMBASA | D24: FOT | E24: Total Serviços de Fotogrametria | F24: uni | G24: ='CRO-1'!H20 -> 0 | H24: ='CRO-1'!I20 -> 1 | I24: ='CRO-1'!D20 -> 1 | J24: - | K24: ='Servicos-de-Fotogrametria'!I8 -> 66234.64 | L24: - | M24: - | N24: - | O24: - | P24: 0 | Q24: 66234.64 | R24: =ROUND(I24*K24,2) -> 66234.64
A25: CODEVASF | D25: PED | E25: Total Serviços de Pedologia | F25: uni | G25: ='CRO-1'!H21 -> 0 | H25: ='CRO-1'!I21 -> 1 | I25: ='CRO-1'!D21 -> 1 | J25: - | K25: ='Servicos-de-Pedologia'!K10 -> 74543.08 | L25: - | M25: - | N25: - | O25: - | P25: 0 | Q25: 74543.08 | R25: =ROUND(I25*K25,2) -> 74543.08
A26: TOTAL DOS CUSTOS DIRETOS | K26: =SUM(O9:O25) -> 375010.46
A27: CUSTOS DIRETOS ITEM 1 | K27: =SUM(M9:M25) -> 132992.2766
A28: CUSTOS DIRETOS ITEM 2 | K28: =SUM(N9:N25) -> 242018.1884
A29: TOTAL DOS ENCARGOS E DESPESAS DIVERSAS | K29: =K32-K26 -> 271844.41
A30: ENCARGOS E DESPESAS DIVERSAS ITEM 1 | K30: =K33-K27 -> 100394.0734
A31: ENCARGOS E DESPESAS DIVERSAS ITEM 2 | K31: =K34-K28 -> 171450.3316
A32: TOTAL DA PROPOSTA A PREÇO GLOBAL | K32: =SUM(R9:R23) -> 646854.87
A33: PROPOSTA A PREÇO GLOBAL DO ITEM 1 | K33: =SUM(P9:P23) -> 233386.35
A34: PROPOSTA A PREÇO GLOBAL DO ITEM 2 | K34: =SUM(Q9:Q23) -> 413468.52
A35: TOTAL DA PROPOSTA A PREÇO UNITÁRIO | K35: =SUM(R24:R25) -> 140777.72
A36: PROPOSTA A PREÇO UNITÁRIO DO ITEM 1 | K36: =SUM(P24:P25) -> 0
A37: PROPOSTA A PREÇO UNITÁRIO DO ITEM 2 | K37: =SUM(Q24:Q25) -> 140777.72
A38: TOTAL DA PROPOSTA | K38: =SUM(K32,K35) -> 787632.59
A39: TOTAL DA PROPOSTA PARA O ITEM 1 | K39: =K33+K36 -> 233386.35
A40: TOTAL DA PROPOSTA PARA O ITEM 2 | K40: =K34+K37 -> 554246.24
A41: PRODUÇÃO** | C41: ITEM 1 | D41: 100000 | I41: R$/hectare | K41: =K39/D41 -> 2.3338635
C42: ITEM 2 | D42: 30000 | K42: =K40/D42 -> 18.47487467
A43: OBSERVAÇÃO:
A44: Alocar os Insumos MO, com respectivo FatorK, dentro da categoria de vínculo contratual (MO1. celetista, MO2. autonomo, MO3. societario)
A45: Uni - unidade de medição do insumo;
A46: Qde - Quantidade do Insumo (não pode ocorrer alteração pela Licitante)
A47: CUD - Custo Unitário Direto do Insumo (sem encargos, taxas e impostos, valor não pode ser maior que o Orçado pela Codevasf)
A48: CT - Custo Total (sem encargos, taxas e impostos) - CT = Qde x CUD
A49: FatorK - Taxa de Ressarcimento de Despesas e Encargos (detalhar composição nas Planilhas "PFP2.1", "PFP2.2", "PFP2.3", "PFP3")
A50: PU - Preço Unitário do Insumo (incluído encargos, taxas e impostos) - PU = CUD x FatorK
A51: PT - Preço Total do Insumo (incluído encargos, taxas e impostos) - PT = Qde x PU
A52: P - Profissionais nível superior nas áreas de Engenharia, Química, Arquitetura, Agronomia e Veterinária, conforme disposições da Lei 4.950-A/66
A53: S - Profissionais de nível superior nas demais áreas de atuação
A54: T - Profissionais de nível médio técnico nas diversas áreas de atuação
A55: A - Profissionais de nível médio de apoio técnico-administrativo
A56: h - horas
A57: ha - hectare
A59: km - quilômetro
A61: *Encargos Complementares e adicionais já incluem auxílio transporte
A62: **Proposta financeira elaborada com base em uma produção de 100.000ha para o item 01 e 30.000ha para o item 02.

Sheet PFP1.1_ECA
A1: ENCARGOS COMPLEMENTARES E ADICIONAIS | E1: CODIGO:
E2: PFP-1.1
A3: NOME DA EMPRESA: | E3: DATA-BASE
E4: 2024-10-01
A5: PROJETO: | D5: CONTRATANTE: | E5: REFERÊNCIA:
A6: =PFP!A6 -> SELEÇÃO DE ÁREAS PRIORITÁRIAS E ELABORAÇÃO DE DIAGNÓSTICO E PROJETO BÁSICO DE ENGENHARIA PARA RECUPERAÇÃO HIDROAMBIENTAL NA ÁREA DE ATUAÇÃO DA CODEVASF. | D6: CODEVASF (SEDE) | E6: SICRO/NA: Julho/2024
A7: Cod. | B7: Base | C7: Insumos | D7: un | E7: Preço Unitário (PU)
A8: EC1 | B8: SICRO | C8: Alimentação | D8: mês | E8: =AVERAGE(736.74,736.74,736.74,736.74,736.74) -> 736.74
A9: EC2 | B9: SICRO | C9: EPI | D9: mês | E9: =AVERAGE(25.51,25.51,25.51,28.6,0) -> 21.026
A10: EC3 | B10: SICRO | C10: Ferramenta | D10: mês | E10: 0
A11: EC4 | B11: SICRO | C11: Transporte | D11: mês | E11: =AVERAGE(0,0,0,44.37,106.22) -> 30.118
A12: EC5 | B12: SICRO | C12: Exame Ocupacional | D12: mês | E12: =AVERAGE(3.99,3.99,3.29,4.05,3.76) -> 3.816
A13: EA1 | B13: SICRO | C13: Cesta Básica | D13: mês | E13: 0
A14: EA2 | B14: SICRO | C14: Assistência Médica | D14: mês | E14: =AVERAGE(295.48,295.48,295.48,295.48,295.48) -> 295.48
A15: EA3 | B15: SICRO | C15: Seguro de Vida | D15: mês | E15: =AVERAGE(9.98,9.98,9.98,9.98,9.98) -> 9.98
A16: ENCARGOS COMPLEMENTARES E ADICIONAIS | E16: =SUM(E8:E15) -> 1097.16
A17: OBSERVAÇÃO:
A18: Cesta de EPI do SICRO/DNIT para o nível superior, custo mensal por profissional, vide Especificações Técnicas
A19: Auxilio transporte pago apenas para resultados positivos do calculo VT=(22xVD)-(VBx0.06x22/30);
A20: VT = valor a receber de auxílio transporte
A21: VD = valor gasto com o transporte por dia, orçamento considerado 10 R$/dia
A22: VB = vencimento básico no contracheque
A23: 0.06 = 6% de participação do servidor
A24: 22 = número de dias por mês em que se usa o transporte (padrão)
A25: 30 = número de dias do mês (padrão)
A26: Uni - unidade de medição do insumo;
A27: PU - Preço Unitário (composições padrão da Codevasf, já incluso o FatorK)
A28: PT - Preço Total (incluído encargos, taxas e impostos) - PT = Qde x PU
A107: Encargos e composições adicionais
A108: Engenheiro pleno (P8066) | D108: =736.74+25.51+3.99+295.48+9.98 -> 1071.7
A109: Engenheiro júnior (P8065) | D109: =736.74+25.51+3.99+295.48+9.98 -> 1071.7
A110: Analista pleno (P8184) | D110: =736.74+25.51+3.29+295.48+9.98 -> 1071
A111: Técnico/Tecnologo pleno (P8143) | D111: =736.74+28.6+44.37+4.05+295.48+9.98 -> 1119.22
A112: Auxiliar administrativo (P8026) | D112: =736.74+106.22+3.76+295.48+9.98 -> 1152.18
A113: Média | D113: =AVERAGE(D108:D112) -> 1097.16

Sheet PFP2.1_FatorKa
A1: DETALHAMENTO DOS ENCARGOS SOCIAIS: Ka | F1: CODIGO:
F2: PFP-2.1
A3: NOME DA EMPRESA: | F3: DATA-BASE
F4: 2024-10-01
A5: PROJETO: | C5: CONTRATANTE: | F5: REFERÊNCIA:
A6: =PFP!A6 -> SELEÇÃO DE ÁREAS PRIORITÁRIAS E ELABORAÇÃO DE DIAGNÓSTICO E PROJETO BÁSICO DE ENGENHARIA PARA RECUPERAÇÃO HIDROAMBIENTAL NA ÁREA DE ATUAÇÃO DA CODEVASF. | C6: CODEVASF (SEDE) | F6: SINAPI/DF: Junho/2024
A7: Cod | B7: DESCRIÇÃO | E7: % | F7: R$
A8: A | B8: ENCARGOS SOCIAIS BÁSICOS | E8: =ROUND(SUM(E9:E17),4) -> 0.378 | F8: =ROUND(E8*SUMIF(PFP!$B$9:$B$25,"MO1",PFP!$O$9:$O$25),2) -> 66525.76
A9: A1 | B9: INSS | E9: 0.2 | F9: =ROUND(E9*SUMIF(PFP!$B$9:$B$25,"MO1",PFP!$O$9:$O$25),2) -> 35198.82
A10: A2 | B10: SESI | E10: 0.015 | F10: =ROUND(E10*SUMIF(PFP!$B$9:$B$25,"MO1",PFP!$O$9:$O$25),2) -> 2639.91
A11: A3 | B11: SENAI | E11: 0.01 | F11: =ROUND(E11*SUMIF(PFP!$B$9:$B$25,"MO1",PFP!$O$9:$O$25),2) -> 1759.94
A12: A4 | B12: INCRA | E12: 0.002 | F12: =ROUND(E12*SUMIF(PFP!$B$9:$B$25,"MO1",PFP!$O$9:$O$25),2) -> 351.99
A13: A5 | B13: SEBRAE | E13: 0.006 | F13: =ROUND(E13*SUMIF(PFP!$B$9:$B$25,"MO1",PFP!$O$9:$O$25),2) -> 1055.96
A14: A6 | B14: Salário Educação | E14: 0.025 | F14: =ROUND(E14*SUMIF(PFP!$B$9:$B$25,"MO1",PFP!$O$9:$O$25),2) -> 4399.85
A15: A7 | B15: Seguro Contra Acidentes de Trabalho | E15: 0.03 | F15: =ROUND(E15*SUMIF(PFP!$B$9:$B$25,"MO1",PFP!$O$9:$O$25),2) -> 5279.82
A16: A8 | B16: FGTS | E16: 0.08 | F16: =ROUND(E16*SUMIF(PFP!$B$9:$B$25,"MO1",PFP!$O$9:$O$25),2) -> 14079.53
A17: A9 | B17: SECONCI | E17: 0.01 | F17: =ROUND(E17*SUMIF(PFP!$B$9:$B$25,"MO1",PFP!$O$9:$O$25),2) -> 1759.94
A18: B | B18: ENCARGOS SOCIAIS QUE RECEBEM INCIDÊNCIA DE "A" | E18: =ROUND(SUM(E19:E25),4) -> 0.1624 | F18: =ROUND(E18*SUMIF(PFP!$B$9:$B$25,"MO1",PFP!$O$9:$O$25),2) -> 28581.44
A19: B3 | B19: Auxílio Enfermidade | E19: 0.0064 | F19: =ROUND(E19*SUMIF(PFP!$B$9:$B$25,"MO1",PFP!$O$9:$O$25),2) -> 1126.36
A20: B4 | B20: 13º Salário | E20: 0.0833 | F20: =ROUND(E20*SUMIF(PFP!$B$9:$B$25,"MO1",PFP!$O$9:$O$25),2) -> 14660.31
A21: B5 | B21: Licença Paternidade | E21: 0.0004 | F21: =ROUND(E21*SUMIF(PFP!$B$9:$B$25,"MO1",PFP!$O$9:$O$25),2) -> 70.4
A22: B6 | B22: Faltas Justificadas | E22: 0.0056 | F22: =ROUND(E22*SUMIF(PFP!$B$9:$B$25,"MO1",PFP!$O$9:$O$25),2) -> 985.57
A23: B8 | B23: Auxílio Acidente de Trabalho | E23: 0.0008 | F23: =ROUND(E23*SUMIF(PFP!$B$9:$B$25,"MO1",PFP!$O$9:$O$25),2) -> 140.8
A24: B9 | B24: Férias Gozadas | E24: 0.0656 | F24: =ROUND(E24*SUMIF(PFP!$B$9:$B$25,"MO1",PFP!$O$9:$O$25),2) -> 11545.21
A25: B10 | B25: Salário Maternidade | E25: 0.0003 | F25: =ROUND(E25*SUMIF(PFP!$B$9:$B$25,"MO1",PFP!$O$9:$O$25),2) -> 52.8
A26: C | B26: ENCARGOS SOCIAIS QUE NÃO RECEBEM INCIDÊNCIA DE "A" | E26: =ROUND(SUM(E27:E31),4) -> 0.0957 | F26: =ROUND(E26*SUMIF(PFP!$B$9:$B$25,"MO1",PFP!$O$9:$O$25),2) -> 16842.63
A27: C1 | B27: Aviso Prévio Indenizado | E27: 0.0324 | F27: =ROUND(E27*SUMIF(PFP!$B$9:$B$25,"MO1",PFP!$O$9:$O$25),2) -> 5702.21
A28: C2 | B28: Aviso Prévio Trabalhado | E28: 0.0008 | F28: =ROUND(E28*SUMIF(PFP!$B$9:$B$25,"MO1",PFP!$O$9:$O$25),2) -> 140.8
A29: C3 | B29: Férias Indenizadas | E29: 0.0359 | F29: =ROUND(E29*SUMIF(PFP!$B$9:$B$25,"MO1",PFP!$O$9:$O$25),2) -> 6318.19
A30: C4 | B30: Depósito Rescisão Sem Justa Causa | E30: 0.0239 | F30: =ROUND(E30*SUMIF(PFP!$B$9:$B$25,"MO1",PFP!$O$9:$O$25),2) -> 4206.26
A31: C5 | B31: Indenização Adicional | E31: 0.0027 | F31: =ROUND(E31*SUMIF(PFP!$B$9:$B$25,"MO1",PFP!$O$9:$O$25),2) -> 475.18
A32: D | B32: REINCIDÊNCIAS | E32: =ROUND(SUM(E33:E34),4) -> 0.0643 | F32: =ROUND(E32*SUMIF(PFP!$B$9:$B$25,"MO1",PFP!$O$9:$O$25),2) -> 11316.42
A33: D1 | B33: Reincidência de "A" sobre "B" | E33: =ROUND(E8*E18,4) -> 0.0614 | F33: =ROUND(E33*SUMIF(PFP!$B$9:$B$25,"MO1",PFP!$O$9:$O$25),2) -> 10806.04
A34: D2 | B34: Reincidência de "A" sobre Aviso Prévio Trabalhado e reincidência do FGTS sobre Aviso Prévio Indenizado | E34: =ROUND((E28*E8)+(E27*E16),4) -> 0.0029 | F34: =ROUND(E34*SUMIF(PFP!$B$9:$B$25,"MO1",PFP!$O$9:$O$25),2) -> 510.38
A35: K1a | B35: Encargos Socias MO1 Celetistas | E35: =ROUND(E8+E18+E26+E32,4) -> 0.7004 | F35: =ROUND(E35*SUMIF(PFP!$B$9:$B$25,"MO1",PFP!$O$9:$O$25),2) -> 123266.25
A36: Ka | B36: Fator K MO1 Celetistas (Taxa de ressarcimento de despesas e encargos sobre MO1) | E36: =ROUND((1+E35+PFP3_FatorKd!E13)*(1+PFP3_FatorKd!E12)*(1+PFP3_FatorKd!E8),4) -> 2.1291
A37: OBSERVAÇÃO: CELETISTAS E EQUIVALENTES
A38: 1 - DISCRIMINAR OS ENCARGOS SOCIAIS COM SEUS RESPECTIVOS PERCENTUAS TOTALIZANDO OS MESMOS.
A39: 2 - APLICAR O % TOTAL P/ CALCULAR OS E. SOCIAIS INCIDENTES NA MÃO-DE-OBRA CELETISTAS
A40: Ka - Taxa de Ressarcimento de Despesas e Encargos sobre a Mão de Obra CELETISTA (incide apenas no Insumo Codigo MO1)
A41: Ka = (1 + K1a + K2) x (1 + K3) x (1 + K4)

Sheet PFP2.2_FatorKb
A1: DETALHAMENTO DOS ENCARGOS SOCIAIS: Kb | F1: CODIGO:
F2: PFP-2.2
A3: NOME DA EMPRESA: | F3: DATA-BASE
F4: 2024-10-01
A5: PROJETO: | C5: CONTRATANTE: | F5: REFERÊNCIA:
A6: =PFP!A6 -> SELEÇÃO DE ÁREAS PRIORITÁRIAS E ELABORAÇÃO DE DIAGNÓSTICO E PROJETO BÁSICO DE ENGENHARIA PARA RECUPERAÇÃO HIDROAMBIENTAL NA ÁREA DE ATUAÇÃO DA CODEVASF. | C6: CODEVASF (SEDE) | F6: SINAPI/DF: Junho/2024
A7: Cod | B7: DESCRIÇÃO | E7: % | F7: R$
A8: A | B8: ENCARGOS SOCIAIS BÁSICOS | E8: =ROUND(SUM(E9:E17),4) -> 0.2 | F8: =ROUND(E8*SUMIF(PFP!$B$9:$B$25,"MO2",PFP!$O$9:$O$25),2) -> 20207.36
A9: A1 | B9: INSS | E9: 0.2 | F9: =ROUND(E9*SUMIF(PFP!$B$9:$B$25,"MO2",PFP!$O$9:$O$25),2) -> 20207.36
A10: A2 | B10: SESI | E10: 0 | F10: =ROUND(E10*SUMIF(PFP!$B$9:$B$23,"MO2",PFP!$O$9:$O$23),2) -> 0
A11: A3 | B11: SENAI | E11: 0 | F11: =ROUND(E11*SUMIF(PFP!$B$9:$B$23,"MO2",PFP!$O$9:$O$23),2) -> 0
A12: A4 | B12: INCRA | E12: 0 | F12: =ROUND(E12*SUMIF(PFP!$B$9:$B$23,"MO2",PFP!$O$9:$O$23),2) -> 0
A13: A5 | B13: SEBRAE | E13: 0 | F13: =ROUND(E13*SUMIF(PFP!$B$9:$B$23,"MO2",PFP!$O$9:$O$23),2) -> 0
A14: A6 | B14: Salário Educação | E14: 0 | F14: =ROUND(E14*SUMIF(PFP!$B$9:$B$23,"MO2",PFP!$O$9:$O$23),2) -> 0
A15: A7 | B15: Seguro Contra Acidentes de Trabalho | E15: 0 | F15: =ROUND(E15*SUMIF(PFP!$B$9:$B$23,"MO2",PFP!$O$9:$O$23),2) -> 0
A16: A8 | B16: FGTS | E16: 0 | F16: =ROUND(E16*SUMIF(PFP!$B$9:$B$23,"MO2",PFP!$O$9:$O$23),2) -> 0
A17: A9 | B17: SECONCI | E17: 0 | F17: =ROUND(E17*SUMIF(PFP!$B$9:$B$23,"MO2",PFP!$O$9:$O$23),2) -> 0
A18: B | B18: ENCARGOS SOCIAIS QUE RECEBEM INCIDÊNCIA DE "A" | E18: =ROUND(SUM(E19:E25),4) -> 0 | F18: =ROUND(E18*SUMIF(PFP!$B$9:$B$23,"MO2",PFP!$O$9:$O$23),2) -> 0
A19: B3 | B19: Auxílio Enfermidade | E19: 0 | F19: =ROUND(E19*SUMIF(PFP!$B$9:$B$23,"MO2",PFP!$O$9:$O$23),2) -> 0
A20: B4 | B20: 13º Salário | E20: 0 | F20: =ROUND(E20*SUMIF(PFP!$B$9:$B$23,"MO2",PFP!$O$9:$O$23),2) -> 0
A21: B5 | B21: Licença Paternidade | E21: 0 | F21: =ROUND(E21*SUMIF(PFP!$B$9:$B$23,"MO2",PFP!$O$9:$O$23),2) -> 0
A22: B6 | B22: Faltas Justificadas | E22: 0 | F22: =ROUND(E22*SUMIF(PFP!$B$9:$B$23,"MO2",PFP!$O$9:$O$23),2) -> 0
A23: B8 | B23: Auxílio Acidente de Trabalho | E23: 0 | F23: =ROUND(E23*SUMIF(PFP!$B$9:$B$23,"MO2",PFP!$O$9:$O$23),2) -> 0
A24: B9 | B24: Férias Gozadas | E24: 0 | F24: =ROUND(E24*SUMIF(PFP!$B$9:$B$23,"MO2",PFP!$O$9:$O$23),2) -> 0
A25: B10 | B25: Salário Maternidade | E25: 0 | F25: =ROUND(E25*SUMIF(PFP!$B$9:$B$23,"MO2",PFP!$O$9:$O$23),2) -> 0
A26: C | B26: ENCARGOS SOCIAIS QUE NÃO RECEBEM INCIDÊNCIA DE "A" | E26: =ROUND(SUM(E27:E31),4) -> 0 | F26: =ROUND(E26*SUMIF(PFP!$B$9:$B$23,"MO2",PFP!$O$9:$O$23),2) -> 0
A27: C1 | B27: Aviso Prévio Indenizado | E27: 0 | F27: =ROUND(E27*SUMIF(PFP!$B$9:$B$23,"MO2",PFP!$O$9:$O$23),2) -> 0
A28: C2 | B28: Aviso Prévio Trabalhado | E28: 0 | F28: =ROUND(E28*SUMIF(PFP!$B$9:$B$23,"MO2",PFP!$O$9:$O$23),2) -> 0
A29: C3 | B29: Férias Indenizadas | E29: 0 | F29: =ROUND(E29*SUMIF(PFP!$B$9:$B$23,"MO2",PFP!$O$9:$O$23),2) -> 0
A30: C4 | B30: Depósito Rescisão Sem Justa Causa | E30: 0 | F30: =ROUND(E30*SUMIF(PFP!$B$9:$B$18,"MO2",PFP!$O$9:$O$23),2) -> 0
A31: C5 | B31: Indenização Adicional | E31: 0 | F31: =ROUND(E31*SUMIF(PFP!$B$9:$B$23,"MO2",PFP!$O$9:$O$23),2) -> 0
A32: D | B32: REINCIDÊNCIAS | E32: =ROUND(SUM(E33:E34),4) -> 0 | F32: =ROUND(E32*SUMIF(PFP!$B$9:$B$23,"MO2",PFP!$O$9:$O$23),2) -> 0
A33: D1 | B33: Reincidência de "A" sobre "B" | E33: =ROUND(E8*E18,4) -> 0 | F33: =ROUND(E33*SUMIF(PFP!$B$9:$B$23,"MO2",PFP!$O$9:$O$23),2) -> 0
A34: D2 | B34: Reincidência de "A" sobre Aviso Prévio Trabalhado e reincidência do FGTS sobre Aviso Prévio Indenizado | E34: =ROUND(E8*E28,4)+ROUND(E27*E11,4) -> 0 | F34: =ROUND(E34*SUMIF(PFP!$B$9:$B$23,"MO2",PFP!$O$9:$O$23),2) -> 0
A35: K1b | B35: Encargos Socias MO2 Autonômos | E35: =ROUND(E8+E18+E26+E32,4) -> 0.2 | F35: =ROUND(E35*SUMIF(PFP!$B$9:$B$25,"MO2",PFP!$O$9:$O$25),2) -> 20207.36
A36: Kb | B36: Fator K MO2 Autônomos (Taxa de ressarcimento de despesas e encargos sobre MO2) | E36: =ROUND((1+E35+PFP3_FatorKd!E13)*(1+PFP3_FatorKd!E12)*(1+PFP3_FatorKd!E8),4) -> 1.5273
A37: OBSERVAÇÃO: AUTÔNOMOS E EQUIVALENTES
A38: 1 - DISCRIMINAR OS ENCARGOS SOCIAIS COM SEUS RESPECTIVOS PERCENTUAS TOTALIZANDO OS MESMOS.
A39: 2 - APLICAR O % TOTAL P/ CALCULAR OS E. SOCIAIS INCIDENTES NA MÃO-DE-OBRA AUTONÔMOS
A40: Kb - Taxa de Ressarcimento de Despesas e Encargos sobre a Mão de Obra AUTONÔMA (incide apenas no Insumo Codigo MO2)
A41: Kb = (1 + K1 + K2) x (1 + K3) x (1 + K4)

Sheet PFP2.3_FatorKc
A1: DETALHAMENTO DOS ENCARGOS SOCIAIS: Kc | F1: CODIGO:
F2: PFP-2.3
A3: NOME DA EMPRESA: | F3: DATA-BASE
F4: 2024-10-01
A5: PROJETO: | C5: CONTRATANTE: | F5: REFERÊNCIA:
A6: =PFP!A6 -> SELEÇÃO DE ÁREAS PRIORITÁRIAS E ELABORAÇÃO DE DIAGNÓSTICO E PROJETO BÁSICO DE ENGENHARIA PARA RECUPERAÇÃO HIDROAMBIENTAL NA ÁREA DE ATUAÇÃO DA CODEVASF. | C6: CODEVASF (SEDE) | F6: SINAPI/DF: Junho/2024
A7: Cod | B7: DESCRIÇÃO | E7: % | F7: R$
A8: A | B8: ENCARGOS SOCIAIS BÁSICOS | E8: =SUM(E9:E17) -> 0 | F8: =ROUND(E8*SUMIF(PFP!$B$9:$B$18,"MO3",PFP!$O$9:$O$20),2) -> 0
A9: A1 | B9: INSS | E9: 0 | F9: =ROUND(E9*SUMIF(PFP!$B$9:$B$18,"MO3",PFP!$O$9:$O$20),2) -> 0
A10: A2 | B10: SESI | E10: 0 | F10: =ROUND(E10*SUMIF(PFP!$B$9:$B$18,"MO3",PFP!$O$9:$O$20),2) -> 0
A11: A3 | B11: SENAI | E11: 0 | F11: =ROUND(E11*SUMIF(PFP!$B$9:$B$18,"MO3",PFP!$O$9:$O$20),2) -> 0
A12: A4 | B12: INCRA | E12: 0 | F12: =ROUND(E12*SUMIF(PFP!$B$9:$B$18,"MO3",PFP!$O$9:$O$20),2) -> 0
A13: A5 | B13: SEBRAE | E13: 0 | F13: =ROUND(E13*SUMIF(PFP!$B$9:$B$18,"MO3",PFP!$O$9:$O$20),2) -> 0
A14: A6 | B14: Salário Educação | E14: 0 | F14: =ROUND(E14*SUMIF(PFP!$B$9:$B$18,"MO3",PFP!$O$9:$O$20),2) -> 0
A15: A7 | B15: Seguro Contra Acidentes de Trabalho | E15: 0 | F15: =ROUND(E15*SUMIF(PFP!$B$9:$B$18,"MO3",PFP!$O$9:$O$20),2) -> 0
A16: A8 | B16: FGTS | E16: 0 | F16: =ROUND(E16*SUMIF(PFP!$B$9:$B$18,"MO3",PFP!$O$9:$O$20),2) -> 0
A17: A9 | B17: SECONCI | E17: 0 | F17: =ROUND(E17*SUMIF(PFP!$B$9:$B$18,"MO3",PFP!$O$9:$O$20),2) -> 0
A18: B | B18: ENCARGOS SOCIAIS QUE RECEBEM INCIDÊNCIA DE "A" | E18: =ROUND(SUM(E19:E25),4) -> 0 | F18: =ROUND(E18*SUMIF(PFP!$B$9:$B$18,"MO3",PFP!$O$9:$O$20),2) -> 0
A19: B3 | B19: Auxílio Enfermidade | E19: 0 | F19: =ROUND(E19*SUMIF(PFP!$B$9:$B$18,"MO3",PFP!$O$9:$O$20),2) -> 0
A20: B4 | B20: 13º Salário | E20: 0 | F20: =ROUND(E20*SUMIF(PFP!$B$9:$B$18,"MO3",PFP!$O$9:$O$20),2) -> 0
A21: B5 | B21: Licença Paternidade | E21: 0 | F21: =ROUND(E21*SUMIF(PFP!$B$9:$B$18,"MO3",PFP!$O$9:$O$20),2) -> 0
A22: B6 | B22: Faltas Justificadas | E22: 0 | F22: =ROUND(E22*SUMIF(PFP!$B$9:$B$18,"MO3",PFP!$O$9:$O$20),2) -> 0
A23: B8 | B23: Auxílio Acidente de Trabalho | E23: 0 | F23: =ROUND(E23*SUMIF(PFP!$B$9:$B$18,"MO3",PFP!$O$9:$O$20),2) -> 0
A24: B9 | B24: Férias Gozadas | E24: 0 | F24: =ROUND(E24*SUMIF(PFP!$B$9:$B$18,"MO3",PFP!$O$9:$O$20),2) -> 0
A25: B10 | B25: Salário Maternidade | E25: 0 | F25: =ROUND(E25*SUMIF(PFP!$B$9:$B$18,"MO3",PFP!$O$9:$O$20),2) -> 0
A26: C | B26: ENCARGOS SOCIAIS QUE NÃO RECEBEM INCIDÊNCIA DE "A" | E26: =ROUND(SUM(E27:E31),4) -> 0 | F26: =ROUND(E26*SUMIF(PFP!$B$9:$B$18,"MO3",PFP!$O$9:$O$20),2) -> 0
A27: C1 | B27: Aviso Prévio Indenizado | E27: 0 | F27: =ROUND(E27*SUMIF(PFP!$B$9:$B$18,"MO3",PFP!$O$9:$O$20),2) -> 0
A28: C2 | B28: Aviso Prévio Trabalhado | E28: 0 | F28: =ROUND(E28*SUMIF(PFP!$B$9:$B$18,"MO3",PFP!$O$9:$O$20),2) -> 0
A29: C3 | B29: Férias Indenizadas | E29: 0 | F29: =ROUND(E29*SUMIF(PFP!$B$9:$B$18,"MO3",PFP!$O$9:$O$20),2) -> 0
A30: C4 | B30: Depósito Rescisão Sem Justa Causa | E30: 0 | F30: =ROUND(E30*SUMIF(PFP!$B$9:$B$18,"MO3",PFP!$O$9:$O$20),2) -> 0
A31: C5 | B31: Indenização Adicional | E31: 0 | F31: =ROUND(E31*SUMIF(PFP!$B$9:$B$18,"MO3",PFP!$O$9:$O$20),2) -> 0
A32: D | B32: REINCIDÊNCIAS | E32: =ROUND(SUM(E33:E34),4) -> 0 | F32: =ROUND(E32*SUMIF(PFP!$B$9:$B$18,"MO3",PFP!$O$9:$O$20),2) -> 0
A33: D1 | B33: Reincidência de "A" sobre "B" | E33: =ROUND(E8*E18,4) -> 0 | F33: =ROUND(E33*SUMIF(PFP!$B$9:$B$18,"MO3",PFP!$O$9:$O$20),2) -> 0
A34: D2 | B34: Reincidência de "A" sobre Aviso Prévio Trabalhado e reincidência do FGTS sobre Aviso Prévio Indenizado | E34: =ROUND(E8*E28,4)+ROUND(E27*E11,4) -> 0 | F34: =ROUND(E34*SUMIF(PFP!$B$9:$B$18,"MO3",PFP!$O$9:$O$20),2) -> 0
A35: K1c | B35: Encargos Socias MO3 Societários | E35: =ROUND(E8+E18+E26+E32,4) -> 0 | F35: =ROUND(E35*SUMIF(PFP!$B$9:$B$18,"MO3",PFP!$O$9:$O$20),2) -> 0
A36: Kc | B36: Fator K MO3 Societários (Taxa de ressarcimento de despesas e encargos sobre MO3) | E36: =ROUND((1+E35+PFP3_FatorKd!E13)*(1+PFP3_FatorKd!E12)*(1+PFP3_FatorKd!E8),4) -> 1.2868
A37: OBSERVAÇÃO: SOCIETÁRIOS E EQUIVALENTES
A38: 1 - DISCRIMINAR OS ENCARGOS SOCIAIS COM SEUS RESPECTIVOS PERCENTUAS TOTALIZANDO OS MESMOS.
A39: 2 - APLICAR O % TOTAL P/ CALCULAR OS E. SOCIAIS INCIDENTES NA MÃO-DE-OBRA DE SOCIETÁRIOS
A40: Kc - Taxa de Ressarcimento de Despesas e Encargos sobre a Mão de Obra SOCIETÁRIA (incide apenas no Insumo Codigo MO3)
A41: Kc = (1 + K1 + K2) x (1 + K3) x (1 + K4)

Sheet PFP3_FatorKd
A1: DESPESAS FISCAIS E CUSTOS DIVERSOS: Kd | F1: CODIGO:
F2: PFP-3
A3: NOME DA EMPRESA: | F3: DATA-BASE
F4: 2024-10-01
A5: PROJETO: | C5: CONTRATANTE: | F5: REFERÊNCIA:
A6: =PFP!A6 -> SELEÇÃO DE ÁREAS PRIORITÁRIAS E ELABORAÇÃO DE DIAGNÓSTICO E PROJETO BÁSICO DE ENGENHARIA PARA RECUPERAÇÃO HIDROAMBIENTAL NA ÁREA DE ATUAÇÃO DA CODEVASF. | C6: CODEVASF (SEDE) | F6: SINAPI/DF: Junho/2024
A7: Cod | B7: DESCRIÇÃO1 | D7: % preço2 | E7: % custo4 | F7: R$
A8: K4 | B8: TRIBUTOS | D8: =ROUND(D9+D10+D11,4) -> 0.104 | E8: =ROUND(E9+E10+E11,4) -> 0.1161 | F8: =E8*SUM(SUMIF(PFP!$B$9:$B$25,"MO1",PFP!$O$9:$O$25)*(1+'PFP2.1_FatorKa'!$E$36)+SUMIF(PFP!$B$9:$B$25,"MO2",PFP!$O$9:$O$25)*(1+'PFP2.2_FatorKb'!$E$36)+SUMIF(PFP!$B$9:$B$25,"<>MO*",PFP!$O$9:$O$25)+$F$13+$F$12) -> 115518.4049
A9: K4.1 | B9: ISS | D9: 0.03 | E9: =ROUND((1/(1-$D$8))*D9,4) -> 0.0335 | F9: =E9*SUM(SUMIF(PFP!$B$9:$B$25,"MO1",PFP!$O$9:$O$25)*(1+'PFP2.1_FatorKa'!$E$36)+SUMIF(PFP!$B$9:$B$25,"MO2",PFP!$O$9:$O$25)*(1+'PFP2.2_FatorKb'!$E$36)+SUMIF(PFP!$B$9:$B$25,"<>MO*",PFP!$O$9:$O$25)+$F$13+$F$12) -> 33332.184
A10: K4.2 | B10: PIS3 - aliquota efetiva aplicavel percentual-desconto | D10: =ROUND(1.65%*0.8,4) -> 0.0132 | E10: =ROUND((1/(1-$D$8))*D10,4) -> 0.0147 | F10: =E10*SUM(SUMIF(PFP!$B$9:$B$25,"MO1",PFP!$O$9:$O$25)*(1+'PFP2.1_FatorKa'!$E$36)+SUMIF(PFP!$B$9:$B$25,"MO2",PFP!$O$9:$O$25)*(1+'PFP2.2_FatorKb'!$E$36)+SUMIF(PFP!$B$9:$B$25,"<>MO*",PFP!$O$9:$O$25)+$F$13+$F$12) -> 14626.36134
A11: K4.3 | B11: COFINS3 - aliquota efetiva aplicavel percentual-desconto | D11: =ROUND(7.6%*0.8,4) -> 0.0608 | E11: =ROUND((1/(1-$D$8))*D11,4) -> 0.0679 | F11: =E11*SUM(SUMIF(PFP!$B$9:$B$25,"MO1",PFP!$O$9:$O$25)*(1+'PFP2.1_FatorKa'!$E$36)+SUMIF(PFP!$B$9:$B$25,"MO2",PFP!$O$9:$O$25)*(1+'PFP2.2_FatorKb'!$E$36)+SUMIF(PFP!$B$9:$B$25,"<>MO*",PFP!$O$9:$O$25)+$F$13+$F$12) -> 67559.85951
A12: K3 | B12: REMUNERAÇÃO DA EMPRESA (LUCRO) | E12: 0.0775 | F12: =E12*SUM(SUMIF(PFP!$B$9:$B$25,"MO1",PFP!$O$9:$O$25)*(1+'PFP2.1_FatorKa'!$E$36)+SUMIF(PFP!$B$9:$B$25,"MO2",PFP!$O$9:$O$25)*(1+'PFP2.2_FatorKb'!$E$36)+SUMIF(PFP!$B$9:$B$25,"<>MO*",PFP!$O$9:$O$25)+$F$13) -> 71565.44683
A13: K2 | B13: CUSTOS DA ADMINISTRAÇÃO CENTRAL | E13: =ROUND(SUM(E14:E16),4) -> 0.07 | F13: =ROUND(E13*SUMIF(PFP!$B$9:$B$25,"MO*",PFP!$O$9:$O$25),2) -> 19392.16
A14: K2.1 | B14: Custos da administração central da empresa (diretoria, pessoal técnico de apoio e pessoal administrativo não diretamente vinculado à prestação dos serviços) | E14: 0.04 | F14: =ROUND(E14*SUMIF(PFP!$B$9:$B$25,"MO*",PFP!$O$9:$O$25),2) -> 11081.24
A15: K2.2 | B15: Outras despesas que afetam o custo de produção como treinamento, biblioteca, programa de qualidade, programa de benefícios, auditoria interna e externa | E15: 0.02 | F15: =ROUND(E15*SUMIF(PFP!$B$9:$B$25,"MO*",PFP!$O$9:$O$25),2) -> 5540.62
A16: K2.3 | B16: Despesas fixas e variáveis com patrimônio, aluguéis, comunicação, manutenção e transporte não diretamente relacionados com o custo direto dos serviços | E16: 0.01 | F16: =ROUND(E16*SUMIF(PFP!$B$9:$B$25,"MO*",PFP!$O$9:$O$25),2) -> 2770.31
A17: Kd | B17: TAXA RESSARCIMENTO DE DESPESAS SOBRE CUSTOS DIVERSOS | E17: =ROUND((1+E12)*(1+E8),4) -> 1.2026
A18: NOME DO INFORMANTE: | E18: QUALIFICAÇÃO:
A20: ASSINATURA: | E20: DATA:
A22: Observação:
A23: 1 - RELACIONAR OS CUSTOS DE ADMINISTRAÇÃO COM RESPECTIVOS PERCENTUAIS INCIDENTES NA MÃO -DE-OBRA
A24: 1 - DISCRIMINAR OS TRIBUTOS QUE INCIDEM SOBRE OS CUSTOS DA PRESTAÇÃO DOS SERVIÇOS
A25: 2 - K4 = INDICAR % DE CADA TRIBUTO E A SOMA DOS MESMOS (ex: ISS 5% + PIS 1,65% + COFINS 7,60% = 14,25%)
A26: 3 - PIS e COFINS, Regime de Incidencia Acumulativa (0,65% e 3,00% - sem percentual de desconto) ou em Regime de Incidencia Não Acumulativa (1,65% e 7,60% - aplicável percentual de desconto) de acordo com a forma de apuração do lucro no IRPJ. APRESENTAR COMPROVANTES de aproveitamento de créditos tributários dos últimos 12 meses em caso de aplicação de "percentual de desconto".
A27: 4 - AS DESPESAS FISCAIS (K4) INCIDEM SOBRE O TOTAL DA FATURA E NÃO SOBRE OS CUSTOS INCORRIDOS,
A28: DEVENDO SER CALCULADO O K4' APLICANDO-SE A SEGUINTE FÓRMULA:
A29: K4' = { [ 1 / ( 1 - K4) ] - 1 } x 100
A30: =CONCATENATE(" K4' = { [ 1 / ( 1 - ",D8," ) ] - 1 } x 100") -> K4' = { [ 1 / ( 1 - 0,104 ) ] - 1 } x 100
A31: Kc - Taxa de Ressarcimento de Despesas sobre Custos Diversos (incide sobre os Insumos Codigo DP e EM)
A32: Kc = (1 + K3) x (1 + K4)
A33: K2 - Incide sobre o Custo Total (CT) da Mão de Obra (MO* = MO1 + MO2)
A34: K3 - Incide sobre o Custo Total (CT) Mão de Obra com encargos (MO1 x Ka ou MO2 x Kb), demais Custos (DP e EM), e Custos da Administração Central (K2)
A35: K4 - Incide sobre o Custo Total (CT) Mão de Obra com encargos (MO1 x Ka ou MO2 x Kb), demais Custos (DP e EM), e Custos da Administração Central (K2) e Lucro (K3)

Sheet CRO-1
A1: PROPOSTA FINANCEIRA POR ITEM | G1: DATA-BASE | H1: CODIGO:
G2: 2024-10-01 | H2: CRO-1
A3: Cod3 | B3: Categoria / Insumo | C3: Uni | D3: Qde (Item 1 + Item 2) | E3: CUD | F3: PU | G3: FatorK | H3: Qde
G4: Meses | H4: Item1 | I4: Item2
A5: =PFP!C9 -> P2 | B5: =PFP!E9 -> Engenheiro pleno (P8066) | C5: mês | D5: =SUM(H5:I5) -> 8 | E5: =PFP!J9 -> 12629.6 | F5: =PFP!K9 -> 19289.19 | G5: =PFP!L9 -> 1.5273 | H5: =SUM('CRO2_Ins-Mes'!H15:J15) -> 3 | I5: =SUM('CRO2_Ins-Mes'!K15:O15) -> 5
A6: =PFP!C10 -> P3 | B6: =PFP!E10 -> Engenheiro júnior (P8065) | C6: mês | D6: 8 | E6: =PFP!J10 -> 12002 | F6: =PFP!K10 -> 25553.46 | G6: =PFP!L10 -> 2.1291 | H6: =SUM('CRO2_Ins-Mes'!H16:J16) -> 3 | I6: =SUM('CRO2_Ins-Mes'!K16:O16) -> 5
A7: S2 | B7: =PFP!E11 -> Analista pleno (P8184) | C7: mês | D7: 8 | E7: =PFP!J11 -> 5205.92 | F7: =PFP!K11 -> 11083.92 | G7: =PFP!L11 -> 2.1291 | H7: =SUM('CRO2_Ins-Mes'!H17:J17) -> 3 | I7: =SUM('CRO2_Ins-Mes'!K17:O17) -> 5
A8: T1 | B8: =PFP!E12 -> Técnico/Tecnologo pleno (P8143) | C8: mês | D8: 8 | E8: =PFP!J12 -> 2911.08 | F8: =PFP!K12 -> 6197.98 | G8: =PFP!L12 -> 2.1291 | H8: =SUM('CRO2_Ins-Mes'!H18:J18) -> 3 | I8: =SUM('CRO2_Ins-Mes'!K18:O18) -> 5
A9: A1 | B9: =PFP!E13 -> Auxiliar administrativo (P8026) | C9: mês | D9: 8 | E9: =PFP!J13 -> 1880.26 | F9: =PFP!K13 -> 4003.26 | G9: =PFP!L13 -> 2.1291 | H9: =SUM('CRO2_Ins-Mes'!H19:J19) -> 3 | I9: =SUM('CRO2_Ins-Mes'!K19:O19) -> 5
A10: =PFP!C14 -> ECA | B10: =PFP!E14 -> Encargos Compementares e Adicionais | C10: mês | D10: 40 | E10: =PFP!J14 -> 1097.16 | F10: =PFP!K14 -> 1319.44 | G10: =PFP!L14 -> 1.2026 | H10: =SUM(H5:H9) -> 15 | I10: =SUM(I5:I9) -> 25
A11: =PFP!C15 -> AT1 | B11: =PFP!E15 -> Auxílio Transporte Técnicos | C11: mês | D11: 0 | E11: =PFP!J15 -> Já incluso* | F11: =PFP!K15 -> 0 | G11: =PFP!L15 -> 1.2026 | H11: 0 | I11: 0
A12: =PFP!C16 -> AT2 | B12: =PFP!E16 -> Auxílio Transporte Auxiliar Administrativo | C12: mês | D12: 0 | E12: =PFP!J16 -> Já incluso* | F12: =PFP!K16 -> 0 | G12: =PFP!L16 -> 1.2026 | H12: 0 | I12: 0
A13: =PFP!C17 -> E8891 | B13: Veículo leve picape 4x4 147 kW (produtivo) | C13: h | D13: =SUM(H13:I13) -> 207 | E13: =PFP!J17 -> 80.68 | F13: =PFP!K17 -> 97.03 | G13: =PFP!L17 -> 1.2026 | H13: =SUM('CRO2_Ins-Mes'!H20:J20) -> 45 | I13: =SUM('CRO2_Ins-Mes'!K20:M20) -> 162
A14: =PFP!C18 -> E8892 | B14: Veículo leve picape 4x4 147 kW (improdutivo) | C14: h | D14: =SUM(H14:I14) -> 345 | E14: =PFP!J18 -> 24.66 | F14: =PFP!K18 -> 29.66 | G14: =PFP!L18 -> 1.2026 | H14: =SUM('CRO2_Ins-Mes'!H21:I21) -> 75 | I14: =SUM('CRO2_Ins-Mes'!K21:O21) -> 270
B15: Notebook | C15: mês | D15: =SUM(H15:I15) -> 40 | E15: =PFP!J19 -> 56.42357639 | F15: =PFP!K19 -> 67.85 | G15: =PFP!L19 -> 1.2026 | H15: =SUM('CRO2_Ins-Mes'!H22:J22) -> 15 | I15: =SUM('CRO2_Ins-Mes'!K22:O22) -> 25
B16: Receptor GPS de navegação | C16: mês | D16: 4 | E16: =PFP!J20 -> 38.32291667 | F16: =PFP!K20 -> 46.09 | G16: =PFP!L20 -> 1.2026 | H16: =SUM('CRO2_Ins-Mes'!H23:J23) -> 1 | I16: =SUM('CRO2_Ins-Mes'!K23:O23) -> 3
B17: Receptor GNSS/RTK | C17: mês | D17: =SUM(H17:I17) -> 2 | E17: =PFP!J21 -> 445.7951389 | F17: =PFP!K21 -> 536.11 | G17: =PFP!L21 -> 1.2026 | H17: =SUM('CRO2_Ins-Mes'!H24:J24) -> 0 | I17: =SUM('CRO2_Ins-Mes'!K24:O24) -> 2
B18: Diárias | C18: dia | D18: =SUM(H18:I18) -> 138 | E18: =PFP!J22 -> 166.87 | F18: =PFP!K22 -> 200.68 | G18: =PFP!L22 -> 1.2026 | H18: =SUM('CRO2_Ins-Mes'!H25:H25) -> 30 | I18: =SUM('CRO2_Ins-Mes'!K25:N25) -> 108
B19: Passagens Aéreas (ida e volta) | C19: uni | D19: 2 | E19: =PFP!J23 -> 1277.42 | F19: =PFP!K23 -> 1536.23 | G19: =PFP!L23 -> 1.2026 | H19: =SUM('CRO2_Ins-Mes'!H26:I26) -> 1 | I19: =SUM('CRO2_Ins-Mes'!L26:O26) -> 1
B20: Total Serviços de Fotogrametria | C20: uni | D20: 1 | E20: =PFP!J24 -> - | F20: =PFP!K24 -> 66234.64 | G20: =PFP!L24 -> - | H20: =SUM('CRO2_Ins-Mes'!H27:J27) -> 0 | I20: =SUM('CRO2_Ins-Mes'!K27:O27) -> 1
B21: Total Serviços de Pedologia | C21: uni | D21: 1 | E21: =PFP!J25 -> - | F21: =PFP!K25 -> 74543.08 | G21: =PFP!L25 -> - | H21: =SUM('CRO2_Ins-Mes'!H28:J28) -> 0 | I21: =SUM('CRO2_Ins-Mes'!K28:O28) -> 1
A22: TOTAL | B22: VALOR TOTAL POR ITEM | C22: R$ | D22: 787632.59 | H22: =SUMPRODUCT(F5:F21,H5:H21) -> 233386.35 | I22: =SUMPRODUCT(I5:I21,F5:F21) -> 554246.24
C23: % | D23: 1 | H23: =ROUND(H22/$D$22,2) -> 0.3 | I23: =ROUND(I22/$D$22,2) -> 0.7
C24: ha | H24: 100000 | I24: 30000
B25: VALOR UNITÁRIO POR ITEM | C25: Un (R$/ha) | H25: =ROUND(H22/H24,2) -> 2.33 | I25: =ROUND(I22/I24,2) -> 18.47
A26: Proposta elaborada com base em uma produção de 100.000ha para o item 01 e 30.000ha para o item 02.

Sheet CRO2_Ins-Mes
A1: CRONOGRAMA SIMPLIFICADO
A3: Cod1 | B3: Cod2 | C3: Produtos/mês | D3: Uni | G3: Qde | H3: 1 | I3: 2 | J3: 3 | K3: 4 | L3: 5 | M3: 6 | N3: 7 | O3: 8
A4: 1 | B4: 1 | C4: ITEM 01: Seleção de áreas prioritárias para recuperação hidroambiental | K4: =SUBTOTAL(4,K5:K5) -> 0 | L4: 0 | M4: 0 | N4: 0 | O4: 0
A5: 1 | B5: 1.1 | C5: Etapa A (Definição de áreas prioritárias para recuperação hidroambiental). | D5: un | G5: =SUM(H5:O5) -> 1 | I5: 1
A6: 2 | B6: 2 | C6: ITEM 02: Projeto básico de engenharia em áreas prioritárias para recuperação hidroambiental | G6: 0
A7: 2 | B7: 2.1 | C7: Etapa 1 (Diagnóstico em áreas prioritárias) - 20% | D7: un | G7: 1 | J7: 1
A8: 2 | B8: 2.2 | C8: Etapa 2 (Cadastro das propriedades rurais) 10% | D8: un | G8: 1 | L8: 1
A9: 2 | B9: 2.3 | C9: Etapa 3 (Minuta do projeto básico de engenharia) - 15% | D9: un | G9: 1 | M9: 1
A10: 2 | B10: 2.4 | C10: Etapa 4 (Memória de quantitativos, orçamento, cronograma físico-financeiro e cotações) - 15% | D10: un | G10: 1 | N10: 1
A11: 2 | B11: 2.5 | C11: Etapa 5 (Projeto básico de engenharia para recuperação hidroambiental) - 40% | D11: un | G11: 1 | O11: 1
A12: Total | B12: Total | C12: Balanço Temporal | D12: Produtos | G12: =SUM(H12:O12) -> 6 | I12: =SUBTOTAL(4,I5:I5) -> 1 | J12: =SUBTOTAL(4,J5:J7) -> 1 | K12: =SUBTOTAL(4,K6:K11) -> 0 | L12: =SUBTOTAL(4,L6:L11) -> 1 | M12: =SUBTOTAL(4,M6:M11) -> 1 | N12: =SUBTOTAL(4,N6:N11) -> 1 | O12: =SUBTOTAL(4,O6:O11) -> 1
A13: Cod1 | B13: Cod2 | C13: Insumos | D13: Uni | E13: Qde | H13: 1 | I13: 2 | J13: 3 | K13: 4 | L13: 5 | M13: 6 | N13: 7 | O13: 8
E14: ITEM 1 | F14: ITEM 2 | G14: TOTAL
A15: 1 | B15: P2 | C15: Engenheiro pleno (P2) | D15: mês | E15: =SUM(H15:I15) -> 2 | F15: =SUM(J15:O15) -> 6 | G15: =SUM(H15:O15) -> 8 | H15: 1 | I15: 1 | J15: 1 | K15: 1 | L15: 1 | M15: 1 | N15: 1 | O15: 1
A16: 1 | B16: P3 | C16: Engenheiro júnior (P3) | D16: mês | E16: =SUM(H16:I16) -> 2 | F16: =SUM(J16:O16) -> 6 | G16: =SUM(H16:O16) -> 8 | H16: 1 | I16: 1 | J16: 1 | K16: 1 | L16: 1 | M16: 1 | N16: 1 | O16: 1
A17: 1 | B17: S2 | C17: Analista pleno (S2) | D17: mês | E17: 2 | F17: 6 | G17: 8 | H17: 1 | I17: 1 | J17: 1 | K17: 1 | L17: 1 | M17: 1 | N17: 1 | O17: 1
A18: 1 | B18: T1 | C18: Técnico/Tecnologo pleno (T1) | D18: mês | E18: 2 | F18: 6 | G18: 8 | H18: 1 | I18: 1 | J18: 1 | K18: 1 | L18: 1 | M18: 1 | N18: 1 | O18: 1
A19: 1 | B19: A1 | C19: Auxiliar administrativo (A1) | D19: mês | E19: 2 | F19: 6 | G19: 8 | H19: 1 | I19: 1 | J19: 1 | K19: 1 | L19: 1 | M19: 1 | N19: 1 | O19: 1
C20: Veículo leve picape 4x4 147 kW (produtivo) | D20: h | E20: 45 | F20: 162 | G20: 207 | H20: =3*15*H16 -> 45 | K20: =3*22*K16 -> 66 | L20: =3*22*L16 -> 66 | M20: =3*10*M16 -> 30
C21: Veículo leve picape 4x4 147 kW (improdutivo) | D21: h | E21: 75 | F21: 270 | G21: 345 | H21: =5*15*$H$16 -> 75 | K21: =5*22*$K$16 -> 110 | L21: =5*22*$L$16 -> 110 | M21: =5*10*$M$16 -> 50
C22: Notebook | D22: mês | E22: 10 | F22: 30 | G22: 40 | H22: =SUM(H15:H19) -> 5 | I22: 5 | J22: 5 | K22: 5 | L22: 5 | M22: 5 | N22: 5 | O22: 5
C23: Receptor GPS de navegação | D23: mês | E23: 1 | F23: 3 | G23: 4 | H23: =SUM(H18) -> 1 | K23: =SUM(K18) -> 1 | L23: =SUM(L18) -> 1 | M23: =SUM(M18) -> 1
C24: Receptor GNSS/RTK | D24: mês | E24: 0 | F24: 2 | G24: 2 | K24: =K16 -> 1 | L24: =K16 -> 1
C25: Diárias | D25: dia | E25: 30 | F25: 108 | G25: 138 | H25: =SUM(H16,H18)*15 -> 30 | K25: =SUM(K16,K18)*22 -> 44 | L25: =SUM(L16,L18)*22 -> 44 | M25: =SUM(M16,M18)*10 -> 20
C26: Passagens Aéreas (ida e volta) | D26: un | E26: 1 | F26: 1 | G26: 2 | H26: =(SUM(H15)) -> 1 | M26: =(SUM(M15)) -> 1
C27: Total Serviços de Fotogrametria | D27: un | E27: 0 | F27: 1 | G27: 1 | K27: 0.5 | L27: 0.5
C28: Total Serviços de Pedologia | D28: un | E28: 0 | F28: 1 | G28: 1 | K28: 0.5 | L28: 0.5
A29: Observações
A30: A área máxima a ser contratada para o item 01 é de 2.000.000ha e a área máxima a ser contratada para o item 02 é de 200.000ha.
A31: A área mínima a ser contratada para o item 01 é de 7.000ha e a área mínima a ser contratada para o item 02 é de 2.000ha.
A32: Considerou-se para produção de 100.000ha para o item 1 e 30.000ha para o item 02 prazo de 240 dias para execução dos serviços.
A33: Proposta elaborada com base em uma produção de 100.000ha para o item 01 e 30.000ha para o item 02.

Sheet Cotacoes-Equip
A1: COMPOSIÇÃO DO CUSTO MENSAL PARA RECEPTOR GPS DE NAVEGAÇÃO, RECEPTOR GNSS/RTK E NOTEBOOK
A2: Data das cotações: outubro/2024
A3: DATA-BASE: outubro/2024
A4: PROJETO: | B4: CONTRATANTE:
A5: =PFP!A6 -> SELEÇÃO DE ÁREAS PRIORITÁRIAS E ELABORAÇÃO DE DIAGNÓSTICO E PROJETO BÁSICO DE ENGENHARIA PARA RECUPERAÇÃO HIDROAMBIENTAL NA ÁREA DE ATUAÇÃO DA CODEVASF. | B5: CODEVASF (SEDE)
A6: Cotação A | B6: R$
A7: Aparelho GPS de navegação
A8: Cotação 1 | B8: 3039
A9: Cotação 2 | B9: 3749
A10: Cotação 3 | B10: 4249
A11: Preço médio | B11: =AVERAGE(B8:B10) -> 3679
A13: Cotação B | B13: R$
A14: Aparelho Kit Receptores GNSS RTK
A15: Cotação 1 | B15: 48900
A16: Cotação 2 | B16: 39589
A17: Cotação 3 | B17: 39900
A18: Preço médio | B18: =AVERAGE(B15:B17) -> 42796.33333
A20: Cotação C | B20: R$
A21: Notebook
A22: Cotação 1 | B22: 5199
A23: Cotação 2 | B23: 4751.99
A24: Cotação 3 | B24: 6299
A25: Preço médio | B25: =AVERAGE(B22:B24) -> 5416.663333
A27: A – DEPRECIAÇÃO MENSAL DO APARELHO GPS DE NAVEGAÇÃO
A28: A.1 Preço de aquisição (Cotação) | B28: =B11 -> 3679
A29: A.2 Tempo previsto de vida útil (meses) | B29: 48
A30: A.3 Previsão de recup. na venda do bem usado (%) | B30: 0.5
A31: A.4 CUSTO MENSAL | B31: =(B28/B29)*B30 -> 38.32291667
A32: B – DEPRECIAÇÃO MENSAL DOS RECEPTOR GNSS/RTK
A33: B.1 Preço de aquisição (Cotação) | B33: =B18 -> 42796.33333
A34: B.2 Tempo previsto de vida útil (meses) | B34: 48
A35: B.3 Previsão de recup. na venda do bem usado (%) | B35: 0.5
A36: B.4 CUSTO MENSAL | B36: =(B33/B34)*B35 -> 445.7951389
A37: C – DEPRECIAÇÃO MENSAL DO NOTEBOOK
A38: C.1 Preço de aquisição (Cotação) | B38: =B25 -> 5416.663333
A39: C.2 Tempo previsto de vida útil (meses) | B39: 48
A40: C.3 Previsão de recup. na venda do bem usado (%) | B40: 0.5
A41: C.4 CUSTO MENSAL | B41: =(B38/B39)*B40 -> 56.42357639

Sheet Diárias
A1: COMPOSIÇÃO DE CUSTOS DE DIÁRIAS
A2: PROJETO: | C2: CONTRATANTE:
A3: =PFP!A6 -> SELEÇÃO DE ÁREAS PRIORITÁRIAS E ELABORAÇÃO DE DIAGNÓSTICO E PROJETO BÁSICO DE ENGENHARIA PARA RECUPERAÇÃO HIDROAMBIENTAL NA ÁREA DE ATUAÇÃO DA CODEVASF. | C3: CODEVASF (SEDE)
A4: DATA-BASE: Outubro/2024
A5: Engenharia Consultiva da Codevasf
A6: CPU - HOSPEDAGEM EQUIPE DE CAMPO (4 PESSOAS/MÊS) | C6: Código/Referencia
A7: Aluguel | B7: 3074.56 | C7: F020003334 - EMBASA - Maio de 2024
A8: Aquisição de Mobiliário para 4 pessoas | B8: =42.41*B18 -> 169.64 | C8: B8954 - DNIT - Relatório de Consolidação de Custos Gerais - Julho de 2024
A9: Material de limpeza e diarista | B9: =126.92+(123*8) -> 1110.92 | C9: 10563 - ORSE de Agosto de 2024 e E200300131 - EMBASA de Maio de 2024
A10: Energia | B10: 180 | C10: 10555/ORSE - Agosto de 2024
A11: Água | B11: 394.99 | C11: 10554/ORSE - Agosto de 2024
A12: Telefone/Internet | B12: =154.99+89 -> 243.99 | C12: 10557/10558/ORSE - Agosto de 2024
A13: IPTU (mês) | B13: =(B7*0.5)/12 -> 128.1066667
A14: Despesas Gerais - 10% | B14: =SUM(B7:B13)*0.1 -> 530.2206667
A15: Custo Mensal: | B15: =SUM(B7:B14) -> 5832.427333
A16: Custo Mensal por pessoa: | B16: =B15/B18 -> 1458.106833
A17: Custo diário por pessoa: | B17: =B16/22 -> 66.27758333
A18: número de pessoas: | B18: 4
A19: Alimentação: | B19: 100.59 | C19: Tabela Diária Codevasf - Maio de 2024
A21: Diária Total por pessoa (alimentação + hospedagem): | B21: =ROUND((B17+B19),2) -> 166.87

Sheet Cotacoes-PassagensAereas
A1: COMPOSIÇÃO DO CUSTO UNITÁRIO DE PASSAGENS AÉREAS
A2: Data das cotações: outubro/2024
A3: PROJETO: | C3: CONTRATANTE: | E3: DATA-BASE
A4: =PFP!A6 -> SELEÇÃO DE ÁREAS PRIORITÁRIAS E ELABORAÇÃO DE DIAGNÓSTICO E PROJETO BÁSICO DE ENGENHARIA PARA RECUPERAÇÃO HIDROAMBIENTAL NA ÁREA DE ATUAÇÃO DA CODEVASF. | C4: CODEVASF (SEDE) | E4: 2024-10-01
A5: Brasília - Palmas | B5: Companhia Aérea 1 | C5: Companhia Aérea 2 | D5: Companhia Aérea 3 | E5: Média
B6: 760 | C6: 760 | D6: 1308 | E6: =AVERAGE(B6:D6) -> 942.6666667
A8: Brasília- Macapá | B8: Companhia Aérea 1 | C8: Companhia Aérea 2 | D8: Companhia Aérea 3 | E8: Média
B9: 1306 | C9: 1591 | D9: 1882 | E9: =AVERAGE(B9:D9) -> 1593
A11: Brasília - Montes Claros | B11: Companhia Aérea 1 | C11: Companhia Aérea 2 | D11: Companhia Aérea 3 | E11: Média
B12: 856 | C12: 927 | D12: 1354 | E12: =AVERAGE(B12:D12) -> 1045.666667
A14: Brasília- Joao Pessoa | B14: Companhia Aérea 1 | C14: Companhia Aérea 2 | D14: Companhia Aérea 3 | E14: Média
B15: 1157 | C15: 1158 | D15: 2270 | E15: =AVERAGE(B15:D15) -> 1528.333333
A17: Preço total considerado uma passagem aérea, ida e volta, para uma pessoa | E17: =ROUND((AVERAGE(E6,E9,E12,E15)),2) -> 1277.42

Sheet Servicos-de-Fotogrametria
A1: Serviços de Fotogrametria
A2: PROJETO: | C2: CONTRATANTE: | F2: DATA-BASE | H2: REFERÊNCIA:
A3: =PFP!A6 -> SELEÇÃO DE ÁREAS PRIORITÁRIAS E ELABORAÇÃO DE DIAGNÓSTICO E PROJETO BÁSICO DE ENGENHARIA PARA RECUPERAÇÃO HIDROAMBIENTAL NA ÁREA DE ATUAÇÃO DA CODEVASF. | C3: CODEVASF (SEDE) | F3: 2024-10-01 | H3: EMBASA: Janeiro/2024
A4: Código | C4: Data Base | D4: Descrição | E4: Unidade | F4: Qde. | G4: Unitario | H4: Custo Unitário | I4: Preço Total
A5: 31.90.22 | C5: 2024-01-01 | D5: Levant. fotogrametrico c/ vant (drone) areas pelo que exced 100ha até 1000ha, incl. ortofotos, gsd<= 10, acuracia horiz. min. 10cm e vert. min. 20cm, aferidos c/ pontos de controle dist. min. 1350m entre eles, excl transp. equipe e equipamentos | E5: ha | F5: 1500 | G5: 32.87 | H5: =ROUND(F5*G5,2) -> 49305 | I5: =ROUND(((H5*$C$35)+H5),2) -> 56548.9
A6: 31.90.23 | C6: 2024-01-01 | D6: Levant. fotogrametrico c/ vant (drone) areas pelo que exceder 1000ha, incl. ortofotos, gsd<=10, acuracia horiz. min. 10cm e vert. min. 20cm, aferidos c/ pontos de controle dist. min. 1350m entre eles, excl. transporte de equipe e equipamentos | E6: ha | F6: 1500 | G6: 3.29 | H6: =ROUND(F6*G6,2) -> 4935 | I6: =ROUND(((H6*$C$35)+H6),2) -> 5660.05
A7: 31.90.16 | C7: 2024-01-01 | D7: Transporte de equipe e equipamentos para levantamento fotogrametrico c/ vant (drone) | E7: km | F7: 450 | G7: 7.8 | H7: =ROUND(F7*G7,2) -> 3510 | I7: =ROUND(((H7*$C$35)+H7),2) -> 4025.69
A8: Preço total dos Serviços de Fotogrametria | H8: =SUM(H5:H7) -> 57750 | I8: =SUM(I5:I7) -> 66234.64
A14: MEMÓRIA DE CALCULO DO BDI DE FORNECIMENTO
A16: ITEM | B16: DISCRIMINAÇÃO | C16: PERC. (%)
A18: 1.00 | B18: Despesas Indiretas
A19: A1 | B19: Seguro e Garantia | C19: 0.008
A20: A2 | B20: Riscos e Imprevistos | C20: 0.0115
A21: A3 | B21: Despesas Financeiras | C21: 0.0105
A22: A4 | B22: Administração Central | C22: 0.022
A23: Total do Grupo A = | C23: =SUM(C19:C22) -> 0.052
A24: 2.00 | B24: Benefício
A25: B1 | B25: LUCRO | C25: 0.05
A26: Total do Grupo B = | C26: =C25 -> 0.05
A27: 3.00 | B27: Impostos
A28: C1 | B28: PIS / PASEP | C28: 0.0065
A29: C2 | B29: COFINS | C29: 0.03
A30: C3 | B30: ISS | C30: 0
A31: Total do Grupo C = | C31: =SUM(C28:C30) -> 0.0365
A32: Fórmula Para Cálculo do B.D.I
A33: BDI =(((1+A4+A1+A2)*(1+A3)*(1+B))/(1-C))-1
A35: Bonificação Sobre Despesas indiretas (B.D.I) = | C35: =(((1+C22+C19+C20)*(1+C21)*(1+C25))/(1-C31))-1 -> 0.146920122

Sheet Servicos-de-Pedologia
A1: SERVIÇOS DE PEDOLOGIA
A2: PROJETO: | C2: CONTRATANTE: | F2: DATA-BASE | G2: REFERÊNCIA: Tabela Engenharia Consultiva Codevasf: Fevereiro/2019 atualizado para Setembro/2024.
A3: =PFP!A6 -> SELEÇÃO DE ÁREAS PRIORITÁRIAS E ELABORAÇÃO DE DIAGNÓSTICO E PROJETO BÁSICO DE ENGENHARIA PARA RECUPERAÇÃO HIDROAMBIENTAL NA ÁREA DE ATUAÇÃO DA CODEVASF. | C3: CODEVASF (SEDE) | F3: 2024-10-01
A4: Base | B4: Data Base | C4: Descrição | D4: Unidade | E4: Qde. | F4: Preços | J4: Custo Total | K4: Preço Total
F5: Unitario | G5: I0 FGV 157980 | H5: I1 FGV 157980 | I5: Custo unitário atualizado para set/2024
A6: Engenharia Consultiva Codevasf | B6: 2019-02-01 | C6: Tradagens | D6: un | E6: 150 | F6: 149.88 | G6: 226.117 | H6: 298.84 | I6: =(F6)*((H6-G6)/G6)+F6 -> 198.0839088 | J6: =I6*E6 -> 29712.58632 | K6: =(J6*$C$38)+J6 -> 34077.96312
A7: Engenharia Consultiva Codevasf | B7: 2019-02-01 | C7: Análises parciais | D7: un | E7: 150 | F7: 174.46 | G7: 226.117 | H7: 298.84 | I7: =(F7)*((H7-G7)/G7)+F7 -> 230.5692469 | J7: =I7*E7 -> 34585.38703 | K7: =(J7*$C$38)+J7 -> 39666.67631
A8: Engenharia Consultiva Codevasf | B8: 2019-02-01 | C8: Picadas manuais | D8: km | E8: 1 | F8: 194.88 | G8: 226.117 | H8: 298.84 | I8: =(F8)*((H8-G8)/G8)+F8 -> 257.5566596 | J8: =I8*E8 -> 257.5566596 | K8: 295.3969154
A9: Engenharia Consultiva Codevasf | B9: 2019-02-01 | C9: Teste de Condutividade Hidráulica | D9: un | E9: 1 | F9: 331.87 | G9: 226.117 | H9: 298.84 | I9: =(F9)*((H9-G9)/G9)+F9 -> 438.6049293 | J9: =I9*E9 -> 438.6049293 | K9: 503.044819
A10: Total Serviços Pedológicos | J10: =ROUND((SUM(J6:J9)),2) -> 64994.13 | K10: =ROUND((SUM(K6:K9)),2) -> 74543.08
A16: MEMÓRIA DE CALCULO DO BDI DE FORNECIMENTO
A18: ITEM | B18: DISCRIMINAÇÃO | C18: PERC. (%)
A21: 1.00 | B21: Despesas Indiretas
A22: A1 | B22: Seguro e Garantia | C22: 0.008
A23: A2 | B23: Riscos e Imprevistos | C23: 0.0115
A24: A3 | B24: Despesas Financeiras | C24: 0.0105
A25: A4 | B25: Administração Central | C25: 0.022
A26: Total do Grupo A = | C26: =SUM(C22:C25) -> 0.052
A27: 2.00 | B27: Benefício
A28: B1 | B28: LUCRO | C28: 0.05
A29: Total do Grupo B = | C29: =C28 -> 0.05
A30: 3.00 | B30: Impostos
A31: C1 | B31: PIS / PASEP | C31: 0.0065
A32: C2 | B32: COFINS | C32: 0.03
A33: C3 | B33: ISS | C33: 0
A34: Total do Grupo C = | C34: =SUM(C31:C33) -> 0.0365
A35: Fórmula Para Cálculo do B.D.I
A36: BDI =(((1+A4+A1+A2)*(1+A3)*(1+B))/(1-C))-1
A38: Bonificação Sobre Despesas indiretas (B.D.I) = | C38: =(((1+C25+C22+C23)*(1+C24)*(1+C29))/(1-C34))-1 -> 0.146920122

Sheet Planilhadecustos
A1: PLANILHA DE CUSTOS
A2: PROJETO: | C2: CONTRATANTE: | F2: DATA-BASE
A3: =PFP!A6 -> SELEÇÃO DE ÁREAS PRIORITÁRIAS E ELABORAÇÃO DE DIAGNÓSTICO E PROJETO BÁSICO DE ENGENHARIA PARA RECUPERAÇÃO HIDROAMBIENTAL NA ÁREA DE ATUAÇÃO DA CODEVASF. | C3: CODEVASF (SEDE) | F3: 2024-10-01
A4: GRUPO 01: Áreas prioritárias para elaboração de diagnóstico e projeto básico de engenharia para recuperação hidroambiental
A5: ITEM | B5: Descrição | C5: Unidade | D5: Quantidade máxima a ser contratada | E5: Preço (R$) | F5: Preço Total (R$)
A6: 1 | B6: Seleção de áreas prioritárias para recuperação hidroambiental | C6: ha | D6: 2000000 | E6: ='CRO-1'!H25 -> 2.33 | F6: =ROUND(D6*E6,2) -> 4660000
A7: 2 | B7: Projeto básico de engenharia em áreas prioritárias para recuperação hidroambiental | C7: ha | D7: 200000 | E7: ='CRO-1'!I25 -> 18.47 | F7: =ROUND(D7*E7,2) -> 3694000
A8: Preço Total | F8: =ROUND(F6+F7,2) -> 8354000
